bitfinex/quotes_BTCUSD_20241205
["timestamp","ask_amount","ask_price","bid_price","bid_amount"]
[1733421969521,0.0753,101310.0,101300.0,0.2045681]
[1733421969919,0.0753,101310.0,101300.0,0.1985681]
[1733421970326,0.0753,101310.0,101300.0,0.1995681]
[1733421970742,0.0753,101310.0,101300.0,0.1985681]
[1733421970973,0.0753,101310.0,101300.0,0.1995681]
[1733421971200,0.0753,101310.0,101300.0,0.2035681]
[1733421971647,0.0753,101310.0,101300.0,0.22293019]
[1733421972075,0.0753,101310.0,101300.0,0.51596328]
[1733421972291,0.18761256,101310.0,101300.0,0.29820914]
[1733421972514,0.23311256,101310.0,101300.0,0.00517605]
[1733421972723,0.85530533,101310.0,101300.0,0.00517605]
[1733421972938,0.85530533,101310.0,101300.0,0.39005777]
[1733421973145,0.79251417,101310.0,101300.0,0.00517605]
[1733421973377,0.38311256,101310.0,101300.0,0.00517605]
[1733421974264,0.38311256,101310.0,101300.0,0.00117605]
[1733421974500,0.38311256,101310.0,101300.0,0.38605777]
[1733421974718,0.1208,101310.0,101300.0,0.42466355]
[1733421975147,0.1208,101310.0,101300.0,0.42486234]
[1733421975357,0.23311256,101310.0,101300.0,0.03978183]
[1733421975802,0.23311256,101310.0,101300.0,0.00017605]
[1733421976016,0.23311256,101310.0,101300.0,0.39036028]
[1733421976676,0.23311256,101310.0,101300.0,0.39136028]
[1733421977314,0.23311256,101310.0,101300.0,0.39036028]
[1733421977462,0.23311256,101310.0,101300.0,0.39136028]
[1733421977876,0.23311256,101310.0,101300.0,0.39309368]
[1733421978968,0.23311256,101310.0,101300.0,0.39339756]
[1733421980228,0.0753,101310.0,101300.0,0.54132542]
[1733421980428,0.0803,101330.0,101320.0,0.098697]
[1733421980635,0.0811656,101340.0,101320.0,0.5834491]
[1733421980849,0.0811656,101340.0,101330.0,0.48466693]
[1733421981055,0.0811656,101340.0,101330.0,0.098687]
[1733421981271,0.0811656,101340.0,101330.0,0.09967369]
[1733421981458,0.0811656,101340.0,101330.0,0.19836305]
[1733421981667,0.0811656,101340.0,101330.0,0.19796305]
[1733421981869,0.0811656,101340.0,101330.0,0.24717491]
[1733421982223,0.0811656,101340.0,101330.0,0.25217491]
[1733421983077,0.19347816,101340.0,101330.0,0.005]
[1733421983291,0.19347816,101340.0,101330.0,0.39072894]
[1733421983734,0.44315421,101340.0,101330.0,0.0058]
[1733421984020,0.64050921,101340.0,101330.0,0.0058]
[1733421984447,0.44315421,101340.0,101330.0,0.0048]
[1733421984700,0.44315421,101340.0,101320.0,0.38492894]
[1733421984898,0.44315421,101340.0,101330.0,0.001]
[1733421985210,0.64050921,101340.0,101330.0,0.001]
[1733421986241,0.64050921,101340.0,101310.0,0.38524956]
[1733421986445,0.44315421,101340.0,101310.0,0.38524956]
[1733421986683,0.64051221,101340.0,101310.0,0.38524956]
[1733421987338,0.64051221,101340.0,101310.0,0.38624956]
[1733421987782,0.64051221,101340.0,101310.0,0.39124956]
[1733421988003,0.44315421,101340.0,101310.0,0.39124956]
[1733421988462,0.64051021,101340.0,101310.0,0.39124956]
[1733421989111,0.64051021,101340.0,101310.0,0.39135207]
[1733421989790,0.34347816,101340.0,101310.0,0.58973412]
[1733421990013,0.2311656,101340.0,101320.0,0.00098689]
[1733421990907,0.2311656,101340.0,101320.0,0.38633896]
[1733421991395,0.2311656,101340.0,101320.0,0.39033896]
[1733421992170,0.2311656,101340.0,101320.0,0.00498689]
[1733421992585,0.0811656,101340.0,101330.0,0.09967605]
[1733421993409,0.0809573,101340.0,101330.0,0.09967605]
[1733421994218,0.0809573,101340.0,101330.0,0.10067605]
[1733421995128,0.0809573,101340.0,101330.0,0.10567605]
[1733421995347,0.0809573,101340.0,101330.0,0.49101459]
[1733421997896,0.34326986,101340.0,101330.0,0.006]
[1733421998101,0.68624408,101340.0,101330.0,0.006]
[1733421998521,0.58832486,101340.0,101330.0,0.006]
[1733421998934,0.58832486,101340.0,101330.0,0.001]
[1733421999145,0.15,101330.0,101310.0,0.38622866]
[1733421999356,0.078,101320.0,101310.0,0.38622866]
[1733421999564,0.2777,101320.0,101310.0,0.38622866]
[1733422000055,0.2777,101320.0,101300.0,0.39117133]
[1733422000276,0.475096,101320.0,101300.0,0.49084738]
[1733422000466,0.78481756,101320.0,101300.0,0.39117133]
[1733422000709,0.26231256,101310.0,101300.0,0.38813811]
[1733422001366,0.33981256,101310.0,101300.0,0.38813811]
[1733422001595,0.53722556,101310.0,101300.0,0.00190945]
[1733422002061,0.53722556,101310.0,101300.0,0.00690945]
[1733422002269,0.53722556,101310.0,101300.0,0.00190945]
[1733422002495,0.73482083,101310.0,101300.0,0.00190945]
[1733422002705,0.79781417,101310.0,101300.0,0.00190945]
[1733422003489,0.79781417,101310.0,101300.0,0.00790945]
[1733422003669,0.79781417,101310.0,101300.0,0.00290945]
[1733422004073,0.79781417,101310.0,101300.0,0.00190945]
[1733422004275,0.89573339,101310.0,101300.0,0.00190945]
[1733422004693,0.89573339,101310.0,101300.0,0.00290945]
[1733422006685,0.90695461,101310.0,101300.0,0.00290945]
[1733422006924,0.9269183,101310.0,101300.0,0.00290945]
[1733422008524,0.82899908,101310.0,101300.0,0.00290945]
[1733422012290,0.92899908,101310.0,101300.0,0.00290945]
[1733422012419,0.65728156,101280.0,101260.0,0.38879958]
[1733422012627,0.279891,101270.0,101260.0,0.0017326]
[1733422013319,0.19471256,101270.0,101260.0,0.0017326]
[1733422013748,0.19471256,101270.0,101240.0,0.19139734]
[1733422013969,0.19471256,101270.0,101260.0,0.00017589]
[1733422014393,0.0762,101290.0,101260.0,0.10485194]
[1733422014598,0.2262,101290.0,101270.0,0.00098725]
[1733422015056,0.2262,101290.0,101270.0,0.1994083]
[1733422015272,0.08992122,101310.0,101280.0,0.19841005]
[1733422015498,0.0787,101310.0,101290.0,0.00098708]
[1733422016342,0.19101256,101310.0,101290.0,0.00098708]
[1733422017006,0.2287,101310.0,101290.0,0.10066313]
[1733422017235,0.11231256,101300.0,101290.0,0.00598708]
[1733422017476,0.32097682,101300.0,101290.0,0.006]
[1733422017688,0.19944382,101300.0,101290.0,0.006]
[1733422017916,0.19944382,101300.0,101280.0,0.0009872]
[1733422018121,0.19944382,101300.0,101290.0,0.001]
[1733422018122,0.0759,101300.0,101290.0,0.001]
[1733422018986,0.2259,101300.0,101290.0,0.001]
[1733422019428,0.2259,101300.0,101290.0,0.007]
[1733422019644,0.2259,101300.0,101290.0,0.001]
[1733422019853,0.41161822,101300.0,101290.0,0.003]
[1733422020032,0.63532161,101300.0,101290.0,0.003]
[1733422020717,0.63532161,101300.0,101290.0,0.002]
[1733422020718,0.68112161,101300.0,101290.0,0.002]
[1733422020937,0.89443417,101300.0,101290.0,0.002]
[1733422021149,0.197491,101270.0,101260.0,0.00017589]
[1733422021384,0.11231256,101270.0,101260.0,0.00017589]
[1733422022384,0.19402017,101270.0,101260.0,0.00017589]
[1733422022616,0.11231256,101270.0,101260.0,0.00017589]
[1733422022815,0.26231256,101270.0,101260.0,0.00017589]
[1733422023028,0.15,101270.0,101260.0,0.00017589]
[1733422023249,0.26231256,101270.0,101260.0,0.00517589]
[1733422023662,0.32086058,101270.0,101260.0,0.00617589]
[1733422023885,0.51835158,101270.0,101260.0,0.00617589]
[1733422024312,0.61835158,101270.0,101230.0,0.08593615]
[1733422024552,0.61835158,101270.0,101250.0,0.0017348]
[1733422024553,0.11231256,101260.0,101250.0,0.0017348]
[1733422024971,0.36330004,101260.0,101250.0,0.0017348]
[1733422025217,0.36231256,101260.0,101250.0,0.0017348]
[1733422025422,0.55982356,101260.0,101250.0,0.0017348]
[1733422026393,0.65774278,101260.0,101250.0,0.0017348]
[1733422026604,0.84943139,101260.0,101250.0,0.0017348]
[1733422026810,0.84943139,101260.0,101250.0,0.0027348]
[1733422027836,0.73711883,101260.0,101250.0,0.0027348]
[1733422028063,0.63919961,101260.0,101250.0,0.0027348]
[1733422028286,0.44168861,101260.0,101250.0,0.0027348]
[1733422028492,0.45308881,101260.0,101250.0,0.0027348]
[1733422028709,0.45341276,101260.0,101250.0,0.0027348]
[1733422029375,0.44201256,101260.0,101250.0,0.0027348]
[1733422029600,0.251,101260.0,101250.0,0.0027348]
[1733422029821,0.151,101260.0,101250.0,0.0027348]
[1733422030045,0.36331256,101260.0,101250.0,0.0027348]
[1733422030283,0.251,101260.0,101250.0,0.0027348]
[1733422030505,0.51743207,101260.0,101250.0,0.0027348]
[1733422030687,0.34891922,101260.0,101250.0,0.0027348]
[1733422030899,0.54643022,101260.0,101250.0,0.0027348]
[1733422031109,0.448511,101260.0,101250.0,0.0027348]
[1733422031575,0.251,101260.0,101250.0,0.0027348]
[1733422031791,0.151,101260.0,101250.0,0.0027348]
[1733422032249,0.251,101260.0,101250.0,0.0027348]
[1733422032437,0.151,101260.0,101250.0,0.0027348]
[1733422032943,0.251,101260.0,101250.0,0.0027348]
[1733422035173,0.34891922,101260.0,101250.0,0.0027348]
[1733422035405,0.54643022,101260.0,101250.0,0.0027348]
[1733422035633,0.251,101260.0,101250.0,0.0027348]
[1733422038753,0.001,101260.0,101250.0,0.10241085]
[1733422038978,0.001,101260.0,101250.0,0.10339828]
[1733422039406,0.10017575,101270.0,101250.0,0.10339828]
[1733422039636,0.00017575,101270.0,101260.0,0.00098744]
[1733422039877,0.00017575,101270.0,101250.0,0.20617585]
[1733422040121,0.00017575,101270.0,101260.0,0.10066347]
[1733422040597,0.00017575,101270.0,101260.0,0.19941847]
[1733422040822,0.00017575,101270.0,101260.0,0.49312186]
[1733422041236,0.00017575,101270.0,101260.0,0.09967605]
[1733422041437,0.00017575,101270.0,101260.0,0.10066331]
[1733422041671,0.00017575,101270.0,101260.0,0.39535412]
[1733422041866,0.00017575,101270.0,101260.0,0.39436686]
[1733422042334,0.00017575,101270.0,101260.0,0.29469081]
[1733422042546,0.00017575,101270.0,101260.0,0.39836686]
[1733422042774,0.00017575,101270.0,101260.0,0.39436686]
[1733422042997,0.00017575,101270.0,101260.0,0.20243105]
[1733422043223,0.00017575,101270.0,101260.0,0.10367605]
[1733422043426,0.00017575,101270.0,101260.0,0.10466338]
[1733422043634,0.00017575,101270.0,101260.0,0.20441838]
[1733422043894,0.00017575,101270.0,101260.0,0.49812186]
[1733422045166,0.00017575,101270.0,101260.0,0.64332186]
[1733422045601,0.00017575,101270.0,101260.0,0.34863105]
[1733422045814,0.00017575,101270.0,101260.0,0.64378035]
[1733422046033,0.00017575,101270.0,101260.0,0.82270966]
[1733422046257,0.00017575,101270.0,101260.0,0.22810762]
[1733422046474,0.00017575,101270.0,101260.0,0.29615467]
[1733422046691,0.00017575,101270.0,101260.0,0.30015467]
[1733422046947,0.00017575,101270.0,101260.0,0.001]
[1733422047169,0.00017575,101270.0,101260.0,0.005]
[1733422047615,0.00104335,101270.0,101260.0,0.001]
[1733422048044,0.00104335,101270.0,101250.0,0.29706703]
[1733422048334,0.10104335,101270.0,101260.0,0.001]
[1733422048542,0.54626017,101270.0,101260.0,0.001]
[1733422048784,0.54527269,101270.0,101250.0,0.0017348]
[1733422049018,0.54527269,101270.0,101260.0,0.003]
[1733422049426,0.25104335,101270.0,101260.0,0.003]
[1733422050338,0.25104335,101270.0,101250.0,0.00272228]
[1733422050585,0.15104335,101270.0,101260.0,0.003]
[1733422051017,0.25104335,101270.0,101260.0,0.003]
[1733422051864,0.25104335,101270.0,101240.0,0.12845508]
[1733422052115,0.25104335,101270.0,101250.0,0.001]
[1733422052547,0.25104335,101270.0,101240.0,0.12046658]
[1733422052765,0.25104335,101270.0,101250.0,0.004]
[1733422052987,0.25104335,101270.0,101250.0,0.00498745]
[1733422053625,0.25104335,101270.0,101250.0,0.00598745]
[1733422055007,0.30940726,101270.0,101250.0,0.00791593]
[1733422055859,0.25104335,101270.0,101250.0,0.00791593]
[1733422056104,0.00104335,101270.0,101260.0,0.00098745]
[1733422056323,0.00104335,101270.0,101260.0,0.2092945]
[1733422056542,0.00104335,101270.0,101260.0,0.30830705]
[1733422056954,0.00104335,101270.0,101260.0,0.33673814]
[1733422057205,0.00104335,101270.0,101260.0,0.30830705]
[1733422057424,0.00104335,101270.0,101260.0,0.09967605]
[1733422057846,0.00104335,101270.0,101260.0,0.10267605]
[1733422058049,0.00104335,101270.0,101260.0,0.1046633]
[1733422058489,0.00104335,101270.0,101260.0,0.1036633]
[1733422058920,0.00104335,101270.0,101260.0,0.27132312]
[1733422059147,0.00104335,101270.0,101260.0,0.27033587]
[1733422059575,0.00104335,101270.0,101260.0,0.26633587]
[1733422059806,0.00104335,101270.0,101260.0,0.21130705]
[1733422060014,0.00104335,101270.0,101260.0,0.20830705]
[1733422060230,0.00104335,101270.0,101260.0,0.09967605]
[1733422060448,0.00104335,101270.0,101260.0,0.10366331]
[1733422060654,0.00104335,101270.0,101260.0,0.22904531]
[1733422060859,0.00104335,101270.0,101260.0,0.22805805]
[1733422061085,0.00104335,101270.0,101260.0,0.23105805]
[1733422061291,0.00104335,101270.0,101260.0,0.30766402]
[1733422061915,0.00104335,101270.0,101260.0,0.30866402]
[1733422062118,0.00104335,101270.0,101260.0,0.24905942]
[1733422062346,0.00104335,101270.0,101260.0,0.24805942]
[1733422062764,0.00104335,101270.0,101260.0,0.24905942]
[1733422063175,0.00104335,101270.0,101260.0,0.25205942]
[1733422064274,0.00104335,101270.0,101260.0,0.57536405]
[1733422067979,0.00104335,101270.0,101260.0,0.57236405]
[1733422068166,0.00104335,101270.0,101260.0,0.57436405]
[1733422068372,0.00104335,101270.0,101260.0,0.57454031]
[1733422068585,0.00104335,101270.0,101260.0,0.57554031]
[1733422071816,0.00011335,101270.0,101260.0,0.28049346]
[1733422072451,0.00011335,101270.0,101260.0,0.15211146]
[1733422072657,0.00011335,101270.0,101260.0,0.12267742]
[1733422072882,0.00011335,101270.0,101260.0,0.12367742]
[1733422073311,0.00011335,101270.0,101260.0,0.12466475]
[1733422073530,0.00011335,101270.0,101260.0,0.25304675]
[1733422073780,0.00011335,101270.0,101260.0,0.24905942]
[1733422074230,0.06980281,101280.0,101260.0,0.24905942]
[1733422074444,0.06980281,101280.0,101260.0,0.25223517]
[1733422074879,0.06980281,101280.0,101260.0,0.17709548]
[1733422075137,0.06980281,101280.0,101260.0,0.18009548]
[1733422075323,0.06980281,101280.0,101260.0,0.18208281]
[1733422075473,0.06980281,101280.0,101260.0,0.31046381]
[1733422075681,0.06980281,101280.0,101260.0,0.43783881]
[1733422075885,0.0484,101290.0,101270.0,0.12935632]
[1733422076087,0.0008674,101300.0,101280.0,0.128357]
[1733422076291,0.0008674,101300.0,101290.0,0.00098714]
[1733422077036,0.0008674,101300.0,101290.0,0.12933114]
[1733422077386,0.0008674,101300.0,101290.0,0.22900719]
[1733422077589,0.0008674,101300.0,101290.0,0.22802005]
[1733422077804,0.0008674,101300.0,101290.0,0.28526236]
[1733422078813,0.0008674,101300.0,101290.0,0.28826236]
[1733422079001,0.0008674,101300.0,101290.0,0.28926236]
[1733422079970,0.0008674,101300.0,101290.0,0.28626236]
[1733422080188,0.0008674,101300.0,101290.0,0.28926236]
[1733422080634,0.0008674,101300.0,101290.0,0.23202005]
[1733422082644,0.0008674,101300.0,101290.0,0.25192541]
[1733422082868,0.11317357,101300.0,101290.0,0.004]
[1733422083087,0.0008674,101300.0,101290.0,0.004]
[1733422083253,0.0008674,101300.0,101290.0,0.00498708]
[1733422084129,0.0008674,101300.0,101290.0,0.00098708]
[1733422084345,0.0008674,101300.0,101290.0,0.00398708]
[1733422084541,0.0008674,101300.0,101290.0,0.00498708]
[1733422084959,0.0008674,101300.0,101290.0,0.00398708]
[1733422085388,0.0008674,101300.0,101290.0,0.00498708]
[1733422085811,0.0008674,101300.0,101290.0,0.14320408]
[1733422086039,0.0008674,101300.0,101290.0,0.28581177]
[1733422086241,0.0008674,101300.0,101290.0,0.28482469]
[1733422087145,0.13191309,101340.0,101290.0,0.29152469]
[1733422087360,98.5897506,101350.0,101340.0,0.16031113]
[1733422087361,97.68547234,101350.0,101340.0,0.16031113]
[1733422087574,95.36885969,101350.0,101340.0,3.93747355]
[1733422087796,91.92486744,101350.0,101340.0,4.37173182]
[1733422088035,86.63625937,101350.0,101340.0,5.15173182]
[1733422088250,85.37415937,101350.0,101340.0,5.19873182]
[1733422088458,85.16431036,101350.0,101340.0,5.15743182]
[1733422088684,85.06783507,101350.0,101340.0,5.15743182]
[1733422088899,85.06783507,101350.0,101340.0,5.15843182]
[1733422089119,84.97481953,101350.0,101340.0,5.15843182]
[1733422089374,84.95481953,101350.0,101340.0,5.18904318]
[1733422089578,84.85839283,101350.0,101340.0,5.48416345]
[1733422089782,84.85839283,101350.0,101340.0,5.48116345]
[1733422089991,84.8549122,101350.0,101340.0,5.48416345]
[1733422090216,84.8549122,101350.0,101340.0,5.18904318]
[1733422090217,83.8491122,101350.0,101340.0,5.18904318]
[1733422090622,83.68896225,101350.0,101340.0,5.16343182]
[1733422090828,83.60226629,101350.0,101340.0,5.45955209]
[1733422091026,83.48778321,101350.0,101340.0,5.45955209]
[1733422091225,83.46779321,101350.0,101340.0,5.45617435]
[1733422091426,83.40894683,101350.0,101340.0,5.19193516]
[1733422091722,83.32465772,101350.0,101340.0,5.19293516]
[1733422092138,83.32465772,101350.0,101340.0,5.19193516]
[1733422092478,82.78155772,101350.0,101340.0,5.47815214]
[1733422092693,82.78155772,101350.0,101340.0,5.4526488]
[1733422093044,82.78155772,101350.0,101340.0,5.46941844]
[1733422093260,82.78155772,101350.0,101340.0,5.18120146]
[1733422093656,82.78155772,101350.0,101340.0,5.00520146]
[1733422093882,82.78155772,101350.0,101340.0,5.00720146]
[1733422093883,82.73227161,101350.0,101340.0,5.00720146]
[1733422094273,82.73227161,101350.0,101340.0,5.00820146]
[1733422094692,82.73227161,101350.0,101340.0,5.00720146]
[1733422094895,82.73227161,101350.0,101340.0,5.15720146]
[1733422095107,82.73227161,101350.0,101340.0,4.99136473]
[1733422095956,82.73227161,101350.0,101340.0,4.99436473]
[1733422096181,82.73227161,101350.0,101340.0,4.98836473]
[1733422096597,82.73227161,101350.0,101340.0,5.16436473]
[1733422097613,82.73227161,101350.0,101340.0,5.16336473]
[1733422097817,82.73227161,101350.0,101340.0,5.16436473]
[1733422098026,82.73227161,101350.0,101340.0,5.01868633]
[1733422098436,82.73227161,101350.0,101340.0,5.19627333]
[1733422099605,82.73227161,101350.0,101340.0,5.19057333]
[1733422099806,82.73227161,101350.0,101340.0,5.14906495]
[1733422100015,83.0304975,101350.0,101340.0,0.65614796]
[1733422100226,82.86257161,101350.0,101340.0,0.61377605]
[1733422100432,83.0254975,101350.0,101340.0,0.72232105]
[1733422100632,82.85757161,101350.0,101340.0,0.72232105]
[1733422100878,82.85757161,101350.0,101340.0,0.72132105]
[1733422101221,82.85757161,101350.0,101340.0,0.72232105]
[1733422101704,82.85757161,101350.0,101340.0,0.71932105]
[1733422101932,82.85757161,101350.0,101340.0,0.60977605]
[1733422102122,82.85757161,101350.0,101340.0,0.72232105]
[1733422102586,82.85757161,101350.0,101340.0,0.72532105]
[1733422103533,82.85757161,101350.0,101340.0,0.61677605]
[1733422103737,82.72727161,101350.0,101340.0,0.61677605]
[1733422103950,82.72727161,101350.0,101340.0,0.97532105]
[1733422104153,82.72727161,101350.0,101340.0,0.99832105]
[1733422104613,82.72727161,101350.0,101340.0,0.87432105]
[1733422104826,82.72727161,101350.0,101340.0,0.86932105]
[1733422105341,82.85207161,101350.0,101340.0,0.72132105]
[1733422105457,82.85207161,101350.0,101340.0,0.71832105]
[1733422105658,82.85207161,101350.0,101340.0,0.72132105]
[1733422105870,82.85207161,101350.0,101340.0,0.61377605]
[1733422106070,83.0199975,101350.0,101340.0,0.10240925]
[1733422106283,83.0199975,101350.0,101340.0,0.0057332]
[1733422106687,83.0199975,101350.0,101340.0,0.0027332]
[1733422107085,83.0199975,101350.0,101340.0,0.0017332]
[1733422107489,83.0199975,101350.0,101340.0,0.0027332]
[1733422107920,83.3173325,101350.0,101340.0,0.0017332]
[1733422108136,83.3173325,101350.0,101340.0,0.0047332]
[1733422108412,83.3173325,101350.0,101340.0,0.0027332]
[1733422108740,83.3173325,101350.0,101340.0,0.0017332]
[1733422108949,83.3173325,101350.0,101340.0,0.0047332]
[1733422109351,83.3173325,101350.0,101340.0,0.0077332]
[1733422109352,83.1199975,101350.0,101340.0,0.0077332]
[1733422111131,83.1199975,101350.0,101340.0,0.0017332]
[1733422111339,83.1199975,101350.0,101340.0,0.0047332]
[1733422111947,82.85207161,101350.0,101340.0,0.10539591]
[1733422112157,82.85207161,101350.0,101340.0,0.23067691]
[1733422112389,82.85207161,101350.0,101340.0,0.22969025]
[1733422112622,82.85207161,101350.0,101340.0,0.24340049]
[1733422113109,83.0199975,101350.0,101340.0,0.01844344]
[1733422113288,83.1199975,101350.0,101340.0,0.01844344]
[1733422113871,83.3173325,101350.0,101340.0,0.01844344]
[1733422114079,83.1199975,101350.0,101340.0,0.01844344]
[1733422114278,83.1199975,101350.0,101340.0,0.01244344]
[1733422114702,83.1199975,101350.0,101340.0,0.01544344]
[1733422115016,83.1199975,101350.0,101340.0,0.01244344]
[1733422115241,83.1199975,101350.0,101340.0,0.01544344]
[1733422115620,83.1199975,101350.0,101340.0,0.01644344]
[1733422116008,83.1199975,101350.0,101340.0,0.01344344]
[1733422117006,82.85207161,101350.0,101340.0,0.01344344]
[1733422117208,82.85207161,101350.0,101340.0,0.1427111]
[1733422117408,82.85207161,101350.0,101340.0,0.1417111]
[1733422117695,82.85207161,101350.0,101340.0,0.14072444]
[1733422117919,83.0199975,101350.0,101340.0,0.01244344]
[1733422118182,82.85207161,101350.0,101340.0,0.01544344]
[1733422118385,82.85207161,101350.0,101340.0,0.24138712]
[1733422118584,82.85207161,101350.0,101340.0,0.24040049]
[1733422118788,82.85207161,101350.0,101340.0,0.24340049]
[1733422118994,82.85207161,101350.0,101340.0,0.24440049]
[1733422119430,82.85207161,101350.0,101340.0,0.24140049]
[1733422119847,82.85207161,101350.0,101340.0,0.24440049]
[1733422120082,82.72727161,101350.0,101340.0,0.24340049]
[1733422120485,82.72727161,101350.0,101340.0,0.24440049]
[1733422121364,82.72727161,101350.0,101340.0,0.53665767]
[1733422124582,82.72727161,101350.0,101340.0,0.53565767]
[1733422124777,82.72727161,101350.0,101340.0,0.53665767]
[1733422125026,82.72727161,101350.0,101340.0,0.53365767]
[1733422125531,82.72727161,101350.0,101340.0,0.53665767]
[1733422126052,82.72727161,101350.0,101340.0,0.53565767]
[1733422126471,82.72727161,101350.0,101340.0,0.49440049]
[1733422126906,82.72727161,101350.0,101340.0,0.49340049]
[1733422127120,82.72727161,101350.0,101340.0,0.78751071]
[1733422127121,82.70144171,101350.0,101340.0,0.78751071]
[1733422127906,82.70144171,101350.0,101340.0,0.78651071]
[1733422128119,82.70144171,101350.0,101340.0,0.80651071]
[1733422128296,82.70144171,101350.0,101340.0,0.80962962]
[1733422128701,82.70144171,101350.0,101340.0,0.81237754]
[1733422128925,82.70144171,101350.0,101340.0,0.68662962]
[1733422129356,82.70144171,101350.0,101340.0,0.68762962]
[1733422129791,82.70144171,101350.0,101340.0,0.68662962]
[1733422129998,82.70144171,101350.0,101340.0,0.39340049]
[1733422130211,82.70144171,101350.0,101340.0,0.68762962]
[1733422130414,82.70144171,101350.0,101340.0,0.39440049]
[1733422130624,82.78434171,101350.0,101340.0,0.24440049]
[1733422130835,82.78434171,101350.0,101340.0,0.24140049]
[1733422131071,82.83284171,101350.0,101340.0,0.24140049]
[1733422131275,82.83284171,101350.0,101340.0,0.14472444]
[1733422131481,82.83284171,101350.0,101340.0,0.14172444]
[1733422131691,82.83284171,101350.0,101340.0,0.14472444]
[1733422132157,82.83284171,101350.0,101340.0,0.14172444]
[1733422132390,82.83284171,101350.0,101340.0,0.14472444]
[1733422132605,82.83284171,101350.0,101340.0,0.24140049]
[1733422133021,82.83284171,101350.0,101340.0,0.24040049]
[1733422133234,82.83284171,101350.0,101340.0,0.24140049]
[1733422133699,82.83284171,101350.0,101340.0,0.24040049]
[1733422134137,82.83284171,101350.0,101340.0,0.24440049]
[1733422134346,82.83284171,101350.0,101340.0,0.24140049]
[1733422134762,82.83284171,101350.0,101340.0,0.24440049]
[1733422136676,82.85247965,101350.0,101340.0,0.24440049]
[1733422138003,82.85247965,101350.0,101340.0,0.14472444]
[1733422138215,82.964604,101350.0,101340.0,0.14472444]
[1733422138594,82.85247965,101350.0,101340.0,0.14472444]
[1733422139029,82.964604,101350.0,101340.0,0.14472444]
[1733422139428,82.964604,101350.0,101340.0,0.14372444]
[1733422139864,82.85247965,101350.0,101340.0,0.14472444]
[1733422140275,82.85247965,101350.0,101340.0,0.14172444]
[1733422140616,82.83284171,101350.0,101340.0,0.24238712]
[1733422140821,82.83284171,101350.0,101340.0,0.24440049]
[1733422141053,82.83284171,101350.0,101340.0,0.24140049]
[1733422141233,82.83284171,101350.0,101340.0,0.5365251]
[1733422141477,82.83284171,101350.0,101340.0,0.5395251]
[1733422142073,82.83284171,101350.0,101340.0,0.5425251]
[1733422142519,82.83284171,101350.0,101340.0,0.5415251]
[1733422142661,82.83284171,101350.0,101340.0,0.57038416]
[1733422142875,82.83284171,101350.0,101340.0,0.57138416]
[1733422143073,82.83284171,101350.0,101340.0,0.5425251]
[1733422143442,82.83284171,101350.0,101340.0,0.57138735]
[1733422143684,82.83284171,101350.0,101340.0,0.5425251]
[1733422144118,82.83284171,101350.0,101340.0,0.54283414]
[1733422144496,82.83284171,101350.0,101340.0,0.57170476]
[1733422144699,82.83284171,101350.0,101340.0,0.56570476]
[1733422145116,82.83284171,101350.0,101340.0,0.56870476]
[1733422145541,82.83284171,101350.0,101340.0,0.56770476]
[1733422145879,82.83284171,101350.0,101340.0,0.56870476]
[1733422146747,82.94496606,101350.0,101340.0,0.56871765]
[1733422146959,82.94496606,101350.0,101340.0,0.24440049]
[1733422148036,82.94496606,101350.0,101340.0,0.24140049]
[1733422148248,82.94496606,101350.0,101340.0,0.24440049]
[1733422149095,82.94496606,101350.0,101340.0,0.24340049]
[1733422149329,82.83284171,101350.0,101340.0,0.24440049]
[1733422149741,82.83284171,101350.0,101340.0,0.24340049]
[1733422150194,82.83284171,101350.0,101340.0,0.24440049]
[1733422150390,82.94496606,101350.0,101340.0,0.24440049]
[1733422151024,82.83284171,101350.0,101340.0,0.01644344]
[1733422151235,83.04496606,101350.0,101340.0,0.01644344]
[1733422151436,83.14256133,101350.0,101340.0,0.0057332]
[1733422151672,83.24197711,101350.0,101340.0,0.0057332]
[1733422151880,83.39197711,101350.0,101340.0,0.0057332]
[1733422152415,83.39197711,101350.0,101340.0,0.0047332]
[1733422153634,83.39197711,101350.0,101340.0,0.0017332]
[1733422154068,83.39197711,101350.0,101340.0,0.0047332]
[1733422154277,83.39197711,101350.0,101340.0,0.0017332]
[1733422154714,83.39197711,101350.0,101340.0,0.0047332]
[1733422154923,83.39197711,101350.0,101340.0,0.0017332]
[1733422155753,83.40263672,101350.0,101340.0,0.0017332]
[1733422157122,0.1,101340.0,101320.0,1.97032478]
[1733422157335,0.0812,101330.0,101320.0,1.85189478]
[1733422158280,0.0812,101330.0,101320.0,1.85489478]
[1733422158713,0.0812,101330.0,101320.0,1.85189478]
[1733422159170,82.76060132,101350.0,101340.0,0.118413]
[1733422159399,82.74994171,101350.0,101340.0,0.21808905]
[1733422160295,82.70144171,101350.0,101340.0,0.21808905]
[1733422160710,82.70144171,101350.0,101340.0,0.22108905]
[1733422161162,82.69644171,101350.0,101340.0,0.22108905]
[1733422161385,82.695911,101350.0,101340.0,0.22108905]
[1733422161613,82.695911,101350.0,101340.0,0.03413273]
[1733422161825,82.695911,101350.0,101340.0,0.15053226]
[1733422162216,82.695911,101350.0,101340.0,0.15353226]
[1733422162427,82.695911,101350.0,101340.0,0.18340492]
[1733422162815,82.695911,101350.0,101340.0,0.33340492]
[1733422163015,82.695911,101350.0,101340.0,0.33141839]
[1733422163221,82.695911,101350.0,101340.0,0.33241839]
[1733422163428,82.695911,101350.0,101340.0,0.32941839]
[1733422163744,82.695911,101350.0,101340.0,0.33241839]
[1733422163947,82.695911,101350.0,101340.0,0.46283946]
[1733422164387,82.695911,101350.0,101340.0,0.46583946]
[1733422165168,82.695911,101350.0,101340.0,0.46283946]
[1733422165412,82.695911,101350.0,101340.0,0.34183946]
[1733422166315,82.695911,101350.0,101340.0,0.34283946]
[1733422166726,82.695911,101350.0,101340.0,0.3139668]
[1733422166952,82.695911,101350.0,101340.0,0.3129668]
[1733422167156,82.695911,101350.0,101340.0,0.3109668]
[1733422167600,82.695911,101350.0,101340.0,0.36577377]
[1733422167814,82.695911,101350.0,101340.0,0.36277377]
[1733422168021,82.695911,101350.0,101340.0,0.36577377]
[1733422168229,82.695911,101350.0,101340.0,0.34177377]
[1733422168663,82.695911,101350.0,101340.0,0.34277377]
[1733422168956,82.695911,101350.0,101340.0,0.33977377]
[1733422169184,82.695911,101350.0,101340.0,0.34177377]
[1733422169380,82.695911,101350.0,101340.0,0.34277377]
[1733422169586,82.695911,101350.0,101340.0,0.3139668]
[1733422170280,82.695911,101350.0,101340.0,0.34176306]
[1733422170498,82.695911,101350.0,101340.0,0.3099668]
[1733422170695,82.695911,101350.0,101340.0,0.3129668]
[1733422171131,82.695911,101350.0,101340.0,0.3099668]
[1733422171331,82.695911,101350.0,101340.0,0.3129668]
[1733422171552,82.695911,101350.0,101340.0,0.34277446]
[1733422171773,82.695911,101350.0,101340.0,0.33977446]